bitfinex-derivatives/quotes_BTCF0:USTF0_20240820
["timestamp","ask_amount","ask_price","bid_price","bid_amount"]
[1724117382419,0.002,60612.0,60608.0,0.082468]
[1724117382614,0.002,60612.0,60609.0,0.082466]
[1724117382827,0.001,60612.0,60605.0,0.40942685]
[1724117383125,0.00024729,60616.0,60611.0,0.3608]
[1724117383331,0.001,60612.0,60611.0,0.443264]
[1724117383624,0.001,60612.0,60611.0,0.49189085]
[1724117383928,0.00024729,60616.0,60615.0,0.082459]
[1724117385532,0.00024729,60616.0,60611.0,0.3608]
[1724117385726,0.083463,60612.0,60611.0,0.001]
[1724117386023,0.0845981,60612.0,60611.0,0.002]
[1724117386426,0.2535981,60612.0,60611.0,0.001]
[1724117387033,0.2525981,60612.0,60605.0,0.443272]
[1724117387223,0.26712928,60612.0,60611.0,0.001]
[1724117387628,0.09712928,60612.0,60611.0,0.001]
[1724117387827,3.86712928,60612.0,60611.0,0.001]
[1724117388317,0.0011351,60612.0,60611.0,0.001]
[1724117388723,0.0011351,60612.0,60611.0,0.002]
[1724117388928,0.0021351,60612.0,60611.0,0.002]
[1724117389328,0.01516628,60612.0,60611.0,0.002]
[1724117389635,0.0021351,60612.0,60611.0,0.002]
[1724117391423,3.7721351,60612.0,60611.0,0.002]
[1724117391922,0.0021351,60612.0,60611.0,0.002]
[1724117393727,0.0021351,60612.0,60600.0,0.082]
[1724117393728,0.3629351,60612.0,60600.0,0.13066199]
[1724117393928,0.3608,60604.0,60597.0,0.13516199]
[1724117394233,0.3608,60604.0,60597.0,0.0865]
[1724117394426,0.3608,60604.0,60595.0,0.04866199]
[1724117394627,0.3608,60604.0,60592.0,0.12906199]
[1724117394628,0.3608,60598.0,60592.0,0.12906199]
[1724117395430,0.3608,60598.0,60593.0,0.04866199]
[1724117395631,0.3608,60598.0,60592.0,0.12906199]
[1724117396134,0.082485,60596.0,60592.0,0.12906199]
[1724117396337,0.3608,60593.0,60592.0,0.001]
[1724117397230,0.00017169,60595.0,60592.0,0.001]
[1724117397231,0.082488,60594.0,60592.0,0.001]
[1724117397631,0.3608,60593.0,60592.0,0.001]
[1724117397936,4.1308,60593.0,60592.0,0.001]
[1724117398335,4.1308,60593.0,60583.0,0.04866199]
[1724117398638,4.1308,60593.0,60582.0,0.04866199]
[1724117399030,4.1308,60593.0,60583.0,0.04866199]
[1724117399235,4.1318,60593.0,60583.0,0.04866199]
[1724117399439,0.3608,60587.0,60581.0,0.04866199]
[1724117400536,0.3618,60587.0,60582.0,0.04866199]
[1724117400839,0.3618,60587.0,60580.0,0.0811]
[1724117400840,0.001,60587.0,60585.0,0.082499]
[1724117401734,0.001,60587.0,60585.0,0.13116099]
[1724117402129,0.001,60587.0,60585.0,0.082499]
[1724117402633,0.002,60587.0,60585.0,0.13116099]
[1724117402936,0.002,60587.0,60585.0,0.082499]
[1724117403136,0.001,60587.0,60585.0,0.082499]
[1724117403339,0.002,60587.0,60585.0,0.082499]
[1724117403937,0.01560201,60587.0,60585.0,0.082499]
[1724117405038,0.01560201,60587.0,60585.0,0.13116099]
[1724117405247,0.002,60587.0,60585.0,0.13116099]
[1724117405546,0.002,60587.0,60585.0,0.082499]
[1724117405841,0.002,60587.0,60586.0,0.90462199]
[1724117406140,0.00017169,60595.0,60593.0,0.082487]
[1724117406341,0.00017169,60595.0,60594.0,0.0868]
[1724117406647,0.00017169,60595.0,60586.0,0.3608]
[1724117406648,0.00017169,60595.0,60587.0,0.13121591]
[1724117406845,0.00017169,60595.0,60589.0,0.0868]
[1724117407444,0.082487,60594.0,60589.0,0.0868]
[1724117407847,0.00017169,60595.0,60590.0,0.0836]
[1724117408142,0.23108,60604.0,60593.0,0.2281]
[1724117408330,0.3608,60611.0,60599.0,0.08248]
[1724117408534,0.3608,60617.0,60599.0,0.49504]
[1724117408740,0.593256,60617.0,60607.0,0.3608]
[1724117408940,0.232456,60617.0,60607.0,0.3608]
[1724117409149,0.08253111,60616.0,60607.0,0.3608]
[1724117409532,0.08253111,60616.0,60608.0,0.1721]
[1724117409731,0.082459,60615.0,60608.0,0.1721]
[1724117409937,7.411e-05,60616.0,60608.0,0.1721]
[1724117410138,0.01007411,60616.0,60611.0,0.04871991]
[1724117410848,0.01007411,60616.0,60609.0,0.0822]
[1724117410849,0.01007411,60616.0,60610.0,0.04871991]
[1724117411345,0.01007411,60616.0,60609.0,0.0822]
[1724117411346,0.01007411,60616.0,60611.0,0.04871991]
[1724117411644,0.01007411,60616.0,60609.0,0.0822]
[1724117411645,0.01007411,60616.0,60610.0,0.04871991]
[1724117411944,7.411e-05,60616.0,60611.0,0.04871991]
[1724117412350,7.411e-05,60616.0,60610.0,0.13118491]
[1724117412550,0.00407411,60616.0,60609.0,0.13091991]
[1724117412742,0.082459,60615.0,60609.0,0.0822]
[1724117412939,0.00407411,60616.0,60610.0,0.04971991]
[1724117413448,0.00407411,60616.0,60612.0,0.082462]
[1724117413834,0.00107411,60616.0,60612.0,0.13118191]
[1724117414243,0.00107411,60616.0,60612.0,0.082462]
[1724117415346,7.411e-05,60616.0,60612.0,0.082462]
[1724117415548,0.00307411,60616.0,60612.0,0.082462]
[1724117415951,7.411e-05,60616.0,60612.0,0.082462]
[1724117416149,0.00607411,60616.0,60612.0,0.082462]
[1724117416657,0.00507411,60616.0,60612.0,0.082462]
[1724117417145,0.00507411,60616.0,60613.0,0.082461]
[1724117417348,0.00507411,60616.0,60614.0,0.08246]
[1724117418348,0.00407411,60616.0,60614.0,0.08246]
[1724117418743,7.411e-05,60616.0,60614.0,0.08246]
[1724117419045,0.00407411,60616.0,60615.0,0.02577748]
[1724117419253,0.00100001,60616.0,60615.0,1.12302]
[1724117419552,0.0002475,60618.0,60616.0,0.082457]
[1724117419742,0.0002475,60618.0,60617.0,0.02577695]
[1724117419949,0.0002475,60618.0,60617.0,0.52069695]
[1724117420949,0.0002475,60618.0,60617.0,0.49492]
[1724117421842,0.0012475,60618.0,60617.0,0.49592]
[1724117422152,0.0022475,60618.0,60617.0,0.50092]
[1724117423151,0.0022475,60618.0,60617.0,0.006]
[1724117423456,0.0022475,60618.0,60617.0,0.50092]
[1724117424051,0.0022475,60618.0,60617.0,0.90092]
[1724117424551,0.0022475,60618.0,60617.0,0.89992]
[1724117424552,0.0012475,60618.0,60617.0,0.89992]
[1724117424747,0.0022475,60618.0,60617.0,0.90092]
[1724117424955,0.3608,60632.0,60626.0,0.082443]
[1724117425154,0.37441339,60632.0,60626.0,0.082443]
[1724117425348,3.77,60631.0,60626.0,0.082443]
[1724117426756,3.772,60631.0,60626.0,0.083443]
[1724117428045,0.002,60631.0,60626.0,0.001]
[1724117428246,0.002,60631.0,60629.0,0.443239]
[1724117428452,0.03183726,60630.0,60629.0,0.443239]
[1724117428953,0.03183726,60630.0,60629.0,0.938039]
[1724117429858,0.03183726,60630.0,60629.0,0.939039]
[1724117429859,0.03783726,60630.0,60629.0,0.939039]
[1724117430258,0.03783726,60630.0,60629.0,1.339039]
[1724117430259,0.12051066,60630.0,60629.0,1.339039]
[1724117430452,0.03783726,60630.0,60629.0,1.339039]
[1724117431052,0.11474406,60635.0,60634.0,0.082433]
[1724117431256,0.0320794,60635.0,60634.0,0.443233]
[1724117431456,0.11449656,60639.0,60637.0,0.082429]
[1724117431662,0.11449656,60641.0,60639.0,0.082426]
[1724117431960,0.13116557,60642.0,60641.0,0.082423]
[1724117432162,0.16299369,60642.0,60641.0,0.168723]
[1724117432460,0.16299369,60642.0,60641.0,1.063443]
[1724117433056,0.17699369,60642.0,60641.0,1.07675432]
[1724117433264,0.04582812,60642.0,60641.0,1.07675432]
[1724117433663,0.05982812,60642.0,60641.0,1.07775432]
[1724117434170,0.42062812,60642.0,60635.0,0.0002475]
[1724117434466,0.14672034,60639.0,60635.0,0.0002475]
[1724117434669,0.11445609,60637.0,60635.0,0.0002475]
[1724117434966,0.03182812,60636.0,60635.0,0.0002475]
[1724117435377,3.77,60638.0,60635.0,0.0002475]
[1724117435563,3.77,60638.0,60635.0,0.0042475]
[1724117436165,3.77,60638.0,60635.0,0.0052475]
[1724117436369,0.002,60636.0,60635.0,0.0052475]
[1724117436766,0.002,60636.0,60635.0,0.0002475]
[1724117436961,0.002,60636.0,60635.0,0.0012475]
[1724117437366,0.10016966,60636.0,60635.0,0.0012475]
[1724117437570,0.002,60636.0,60635.0,0.0012475]
[1724117437976,0.03383975,60636.0,60635.0,0.0012475]
[1724117438161,0.082441,60629.0,60622.0,0.3608]
[1724117438361,0.03383975,60636.0,60622.0,0.3608]
[1724117438362,0.09840233,60626.0,60622.0,0.3608]
[1724117439680,0.09940233,60626.0,60622.0,0.3658]
[1724117439869,0.09840233,60625.0,60622.0,0.3658]
[1724117440374,0.09840233,60625.0,60622.0,0.448248]
[1724117441075,0.09840233,60624.0,60622.0,0.448248]
[1724117441578,0.09840233,60623.0,60622.0,0.446248]
[1724117442072,0.03184211,60625.0,60622.0,0.446248]
[1724117442268,0.001,60625.0,60622.0,0.446248]
[1724117443075,0.082442,60627.0,60622.0,0.446248]
[1724117443374,0.001,60623.0,60622.0,0.443248]
[1724117443576,0.082442,60627.0,60622.0,0.446248]
[1724117443774,0.09522593,60627.0,60622.0,0.446248]
[1724117444575,0.01278393,60627.0,60622.0,0.3638]
[1724117444774,0.082447,60624.0,60622.0,0.3638]
[1724117445274,0.082448,60623.0,60622.0,0.3608]
[1724117445476,0.082448,60623.0,60622.0,0.3638]
[1724117446172,0.082448,60623.0,60622.0,0.3608]
[1724117446375,0.082448,60623.0,60622.0,0.3638]
[1724117446678,0.083448,60623.0,60622.0,0.3638]
[1724117446871,0.083448,60623.0,60618.0,0.0002475]
[1724117446872,0.89588,60623.0,60618.0,0.0002475]
[1724117447072,0.082453,60619.0,60618.0,0.0002475]
[1724117447473,3.852453,60619.0,60618.0,0.0002475]
[1724117448079,0.3608,60620.0,60618.0,0.0002475]
[1724117448883,0.001,60619.0,60618.0,0.0052475]
[1724117449381,0.001,60619.0,60618.0,0.0012475]
[1724117449576,0.3608,60620.0,60618.0,0.0052475]
[1724117449577,0.3618,60620.0,60618.0,0.0052475]
[1724117450087,0.3618,60620.0,60618.0,0.01790709]
[1724117450280,0.3608,60620.0,60618.0,0.0042475]
[1724117450469,0.03284622,60619.0,60618.0,0.0042475]
[1724117450676,0.19586882,60619.0,60618.0,0.0042475]
[1724117451177,0.03284622,60619.0,60618.0,0.0042475]
[1724117451972,0.03184622,60619.0,60618.0,0.0052475]
[1724117452678,0.19486882,60619.0,60618.0,0.0042475]
[1724117452978,0.23624149,60619.0,60618.0,0.0052475]
[1724117453282,0.07321889,60619.0,60618.0,0.0052475]
[1724117453580,0.03284622,60619.0,60618.0,0.0052475]
[1724117453779,0.19701086,60619.0,60618.0,0.0052475]
[1724117454080,0.03284622,60619.0,60618.0,0.0052475]
[1724117454681,0.19701086,60619.0,60618.0,0.0052475]
[1724117455678,0.07321889,60619.0,60618.0,0.0052475]
[1724117455874,0.03284622,60619.0,60618.0,0.0052475]
[1724117458376,0.032844,60619.0,60618.0,0.0052475]
[1724117458683,0.001,60619.0,60618.0,0.0052475]
[1724117458983,0.001,60619.0,60618.0,0.01837438]
[1724117459387,0.001,60619.0,60618.0,0.10082838]
[1724117461681,0.0807,60635.0,60629.0,0.08244]
[1724117461883,0.23096,60636.0,60629.0,0.44324]
[1724117462183,0.3608,60645.0,60629.0,0.44324]
[1724117462487,0.0824,60648.0,60638.0,0.082427]
[1724117462680,0.0824,60648.0,60642.0,0.3608]
[1724117463073,0.082417,60646.0,60642.0,0.3608]
[1724117463878,0.082417,60646.0,60642.0,0.3618]
[1724117465376,0.096417,60646.0,60642.0,0.3618]
[1724117465679,0.12276707,60645.0,60642.0,0.3618]
[1724117465880,0.12276707,60644.0,60642.0,0.3618]
[1724117466077,0.12276707,60643.0,60642.0,0.3618]
[1724117466279,0.30338293,60643.0,60642.0,0.3618]
[1724117466478,0.2528017,60643.0,60642.0,0.3618]
[1724117466674,0.07218584,60643.0,60642.0,0.3618]
[1724117466890,0.07218584,60643.0,60642.0,0.4401]
[1724117467084,0.07218584,60643.0,60642.0,0.4411]
[1724117467280,0.23632334,60643.0,60642.0,0.26361249]
[1724117467476,0.082437,60632.0,60613.0,0.5889]
[1724117467679,0.14773974,60619.0,60618.0,0.082454]
[1724117467986,0.21992447,60619.0,60618.0,0.2281]
[1724117468178,0.07218584,60619.0,60611.0,0.2281]
[1724117468375,0.14773383,60613.0,60611.0,0.2281]
[1724117468575,0.43298584,60612.0,60611.0,0.2281]
[1724117468788,0.48356707,60612.0,60609.0,0.0002475]
[1724117469083,0.20523107,60611.0,60609.0,0.0002475]
[1724117469286,0.20523107,60611.0,60599.0,0.2281]
[1724117469287,0.30336821,60610.0,60599.0,0.2281]
[1724117469488,0.3608,60611.0,60599.0,0.24099998]
[1724117469489,0.16418846,60603.0,60599.0,0.24099998]
[1724117469783,0.07218584,60602.0,60599.0,0.24099998]
[1724117469985,0.07218584,60601.0,60599.0,0.24099998]
[1724117470179,0.07218584,60600.0,60599.0,0.24099998]
[1724117470888,0.2363743,60600.0,60599.0,0.24099998]
[1724117471484,0.07218584,60600.0,60599.0,0.24099998]
[1724117471975,0.07218584,60600.0,60599.0,0.24199998]
[1724117472377,0.07618584,60600.0,60599.0,0.24199998]
[1724117472582,0.07618584,60600.0,60599.0,0.24099998]
[1724117472783,0.07818584,60600.0,60599.0,0.24099998]
[1724117473288,0.07818584,60600.0,60578.0,0.00016796]
[1724117473289,1.03096821,60600.0,60578.0,0.00016796]
[1724117473493,1.03096821,60600.0,60579.0,0.3927]
[1724117473494,0.13116192,60580.0,60579.0,0.3927]
[1724117473879,0.13116192,60580.0,60579.0,1.2879]
[1724117474201,0.13116192,60580.0,60579.0,0.3927]
[1724117474694,0.13116192,60580.0,60579.0,0.15578048]
[1724117474993,0.13116192,60580.0,60579.0,0.0814]
[1724117475188,0.082508,60579.0,60578.0,0.01289828]
[1724117475492,0.3608,60579.0,60578.0,0.01289828]
[1724117475686,0.3608,60579.0,60578.0,0.01389828]
[1724117476284,0.3608,60579.0,60578.0,0.01289828]
[1724117476587,0.3628,60579.0,60578.0,0.01389828]
[1724117476995,0.7628,60579.0,60571.0,0.04850749]
[1724117477192,0.7628,60579.0,60553.0,0.04851207]
[1724117477193,0.082531,60562.0,60553.0,0.04851207]
[1724117477493,0.082531,60562.0,60547.0,0.2281]
[1724117477494,0.3608,60554.0,60547.0,0.2281]
[1724117478089,0.443334,60560.0,60548.0,0.49544]
[1724117478090,0.00016796,60553.0,60548.0,0.49544]
[1724117478395,0.00016796,60553.0,60552.0,0.2281]
[1724117478893,0.3608,60560.0,60558.0,0.082536]
[1724117479094,0.3608,60560.0,60559.0,0.2281]
[1724117479283,0.3608,60568.0,60559.0,0.9669]
[1724117479484,0.3608,60568.0,60567.0,0.2281]
[1724117480289,0.3608,60568.0,60567.0,0.082524]
[1724117480494,0.3618,60568.0,60567.0,0.082524]
[1724117481189,0.001,60568.0,60567.0,0.082524]
[1724117481787,0.3608,60572.0,60570.0,0.082519]
[1724117482886,0.3618,60572.0,60570.0,0.082519]
[1724117483289,0.001,60572.0,60570.0,0.082519]
[1724117483791,0.002,60572.0,60570.0,0.001]
[1724117484791,0.3628,60572.0,60570.0,0.001]
[1724117484989,0.3618,60572.0,60570.0,0.001]
[1724117485189,0.0808,60571.0,60564.0,0.082527]
[1724117485388,0.3608,60565.0,60564.0,0.09563357]
[1724117487989,0.3608,60565.0,60564.0,0.09663357]
[1724117488591,0.31951953,60565.0,60564.0,0.09663357]
[1724117489687,0.3608,60572.0,60567.0,0.082524]
[1724117489891,0.3608,60572.0,60568.0,0.082522]
[1724117491998,0.3638,60572.0,60564.0,0.01310657]
[1724117492299,0.3638,60572.0,60560.0,0.3229]
[1724117492300,0.3608,60567.0,60566.0,0.082525]
[1724117493690,0.3608,60567.0,60560.0,0.3229]
[1724117493894,0.3608,60567.0,60562.0,0.08253]
[1724117493895,0.443325,60567.0,60562.0,0.08253]
[1724117494095,0.0829,60566.0,60562.0,0.08253]
[1724117494299,0.0829,60566.0,60564.0,0.001]
[1724117494894,0.0829,60566.0,60562.0,0.08253]
[1724117495093,0.0829,60566.0,60562.0,0.001]
[1724117495094,0.082528,60564.0,60562.0,0.001]
[1724117495294,0.082528,60564.0,60554.0,0.00084]
[1724117495295,0.082532,60562.0,60550.0,0.0842]
[1724117495496,0.082532,60562.0,60552.0,0.0778]
[1724117495497,0.3608,60558.0,60552.0,0.0778]
[1724117495801,0.3608,60558.0,60552.0,0.160344]
[1724117496001,0.3608,60558.0,60552.0,0.0778]
[1724117496495,0.3608,60558.0,60555.0,0.08254]
[1724117497192,0.3608,60558.0,60556.0,0.082539]
[1724117497408,0.00024771,60561.0,60560.0,0.082533]
[1724117497608,0.00024771,60561.0,60560.0,0.14737596]
[1724117497797,0.00024771,60561.0,60560.0,0.082533]
[1724117498804,0.3608,60565.0,60564.0,0.082528]
[1724117498997,0.3608,60565.0,60564.0,0.14745661]
[1724117499401,0.3608,60565.0,60564.0,0.082528]
[1724117499992,0.36104771,60571.0,60564.0,0.3608]
[1724117500199,0.36104771,60571.0,60569.0,0.14748897]
[1724117500392,0.36104771,60571.0,60569.0,0.082521]
[1724117501202,0.3608,60582.0,60581.0,0.082505]
[1724117501504,0.3608,60593.0,60581.0,0.44202881]
[1724117501695,0.3608,60593.0,60591.0,0.082491]
[1724117502100,0.3608,60593.0,60590.0,0.06501322]
[1724117502301,0.3608,60593.0,60591.0,0.06501322]
[1724117502595,0.3748,60593.0,60591.0,0.04879202]
[1724117502805,0.3748,60593.0,60590.0,0.04879202]
[1724117503197,0.3888,60593.0,60590.0,0.04879202]
[1724117503394,0.3888,60593.0,60591.0,0.04879202]
[1724117503798,0.3888,60593.0,60589.0,0.04879202]
[1724117504002,0.3888,60593.0,60590.0,0.04879202]
[1724117504402,0.3888,60593.0,60589.0,0.04879202]
[1724117504599,0.3748,60593.0,60588.0,0.13128602]
[1724117504908,0.3888,60593.0,60588.0,0.13128602]
[1724117505499,0.3748,60593.0,60588.0,0.082494]
[1724117505700,0.3888,60593.0,60588.0,0.13128602]
[1724117506000,0.3888,60593.0,60588.0,0.082494]
[1724117506204,0.3888,60593.0,60588.0,0.13128602]
[1724117506399,0.3888,60593.0,60588.0,0.082494]
[1724117507107,0.3888,60593.0,60588.0,0.04879202]
[1724117507405,0.3888,60593.0,60586.0,0.00024771]
[1724117507406,0.3608,60592.0,60586.0,0.00024771]
[1724117507602,0.3608,60587.0,60586.0,0.00024771]
[1724117508095,3.77088,60591.0,60586.0,0.00024771]
[1724117508302,0.3608,60592.0,60586.0,0.04903973]
[1724117508502,0.3608,60592.0,60588.0,0.04879202]
[1724117509104,0.3608,60592.0,60588.0,0.13128702]
[1724117509498,0.014,60592.0,60591.0,0.3608]
[1724117509708,0.028,60592.0,60590.0,0.04879202]
[1724117509906,0.3888,60592.0,60589.0,0.04879202]
[1724117510500,0.3888,60592.0,60588.0,0.082495]
[1724117510501,0.3888,60592.0,60588.0,0.13128702]
[1724117510811,0.3888,60592.0,60589.0,0.06501322]
[1724117511414,0.3888,60592.0,60588.0,0.14750822]
[1724117512112,0.3888,60592.0,60588.0,0.06501322]
[1724117512311,0.3748,60592.0,60588.0,0.06501322]
[1724117512512,0.3888,60592.0,60588.0,0.06501322]
[1724117513113,0.3888,60592.0,60591.0,0.04876582]
[1724117513412,0.3888,60592.0,60590.0,0.04876582]
[1724117514113,0.3888,60592.0,60589.0,0.04876582]
[1724117514312,0.47129,60592.0,60589.0,0.04876582]
[1724117514500,0.3888,60592.0,60588.0,0.04876582]
[1724117514703,0.4405,60591.0,60586.0,0.04901353]
[1724117515410,0.522992,60591.0,60586.0,0.04901353]
[1724117515607,0.443292,60591.0,60586.0,0.04901353]
[1724117515805,0.443292,60591.0,60588.0,0.04876582]
[1724117516110,0.443292,60591.0,60586.0,0.00024771]
[1724117516111,0.3608,60591.0,60589.0,0.04876582]
[1724117516304,0.3748,60591.0,60586.0,0.06526093]
[1724117516501,0.3888,60591.0,60589.0,0.082494]
[1724117516706,0.3888,60591.0,60590.0,0.04872223]
[1724117516908,0.3888,60591.0,60590.0,0.04872433]
[1724117517205,0.3888,60591.0,60589.0,0.082494]
[1724117517909,0.3748,60591.0,60589.0,0.082494]
[1724117518115,0.3888,60591.0,60590.0,0.04872891]
[1724117518711,0.3748,60591.0,60589.0,0.082494]
[1724117519012,0.3888,60591.0,60589.0,0.082494]
[1724117521015,0.3888,60591.0,60586.0,0.00024771]
[1724117521209,0.18087346,60587.0,60586.0,0.00024771]
[1724117521412,0.082497,60587.0,60586.0,0.00024771]
[1724117521607,0.11436154,60587.0,60586.0,0.00024771]
[1724117521807,0.60952204,60587.0,60586.0,0.00024771]
[1724117522511,0.11436204,60587.0,60586.0,0.00024771]
[1724117522705,0.12836204,60587.0,60586.0,0.00024771]
[1724117522911,0.63752204,60587.0,60586.0,0.00024771]
[1724117523124,0.63752204,60587.0,60574.0,0.0929737]
[1724117523125,0.082506,60580.0,60574.0,0.0929737]
[1724117523320,0.443306,60580.0,60574.0,0.0929737]
[1724117523918,0.26484276,60579.0,60574.0,0.082514]
[1724117524119,0.3608,60575.0,60574.0,0.082514]
[1724117525413,0.3608,60575.0,60571.0,0.01047344]
[1724117525920,0.3808,60575.0,60573.0,0.04889608]
[1724117526515,0.3778,60575.0,60574.0,0.04889608]
[1724117527529,0.3778,60575.0,60572.0,0.06501322]
[1724117527823,0.3738,60575.0,60572.0,0.06501322]
[1724117528124,0.3688,60575.0,60572.0,0.06501322]
[1724117528315,0.3678,60575.0,60571.0,0.07548666]
[1724117528624,0.3798,60575.0,60572.0,0.06501322]
[1724117529019,0.3768,60575.0,60571.0,0.07548666]
[1724117529218,0.3768,60575.0,60571.0,0.00024771]
[1724117529619,0.459313,60575.0,60574.0,0.04897249]
[1724117529813,0.459313,60575.0,60573.0,0.04897249]
[1724117529814,0.082514,60574.0,60573.0,0.04897249]
[1724117530328,0.3758,60575.0,60571.0,0.0492202]
[1724117530520,0.3758,60575.0,60571.0,0.00024771]
[1724117530823,0.49528,60574.0,60571.0,0.00024771]
[1724117531024,0.3608,60572.0,60565.0,0.37187249]
[1724117531217,0.3608,60566.0,60565.0,0.04897249]
[1724117531414,0.082528,60564.0,60562.0,0.12717249]
[1724117531621,0.082528,60564.0,60562.0,0.04897249]
[1724117532420,0.082528,60564.0,60560.0,0.04897249]
[1724117532721,0.082528,60564.0,60559.0,0.12717249]
[1724117532722,0.3608,60561.0,60559.0,0.12717249]
[1724117533321,0.3608,60561.0,60559.0,0.0782]
[1724117533530,0.31951624,60561.0,60559.0,0.12717249]
[1724117534435,0.31951624,60561.0,60559.0,0.0782]
[1724117534826,0.32051624,60561.0,60559.0,0.12717249]
[1724117535135,0.32051624,60561.0,60559.0,0.20970649]
[1724117535529,0.32151624,60561.0,60559.0,0.20970649]
[1724117536332,0.002,60561.0,60559.0,0.20970649]
[1724117536522,0.002,60561.0,60560.0,0.082533]
[1724117537017,0.002,60561.0,60560.0,0.60369264]
[1724117537222,0.002,60561.0,60560.0,0.10833264]
[1724117537728,0.002,60561.0,60560.0,0.082533]
[1724117537933,0.002,60561.0,60560.0,0.1083333]
[1724117538435,0.001,60561.0,60560.0,0.443333]
[1724117538638,0.00076375,60561.0,60560.0,1.566893]
[1724117539127,0.00076375,60561.0,60560.0,1.59269152]
[1724117539327,0.00076375,60561.0,60560.0,1.19269152]
[1724117539724,0.00076375,60561.0,60560.0,0.69733152]
[1724117541137,0.00076375,60561.0,60560.0,0.46913152]
[1724117541344,0.00076375,60561.0,60560.0,0.443333]
[1724117541634,0.00024771,60569.0,60568.0,0.082523]
[1724117543034,0.00024771,60569.0,60568.0,0.13142256]
[1724117543237,0.00024771,60569.0,60568.0,0.13142352]
[1724117543733,0.00424771,60569.0,60568.0,0.13142352]
[1724117543936,0.00424771,60569.0,60568.0,0.04890052]
[1724117544143,0.00424771,60569.0,60567.0,0.04890052]
[1724117544434,0.00424771,60569.0,60565.0,0.06516544]
[1724117544638,0.00624771,60569.0,60565.0,0.06516544]
[1724117545442,0.00524771,60569.0,60566.0,0.14769044]
[1724117545735,0.00524771,60569.0,60566.0,0.082525]
[1724117546037,0.00524771,60569.0,60568.0,0.082523]
[1724117546238,0.00424771,60569.0,60568.0,0.082523]
[1724117546836,0.00024771,60569.0,60568.0,0.082523]
[1724117547035,0.00324771,60569.0,60568.0,0.443323]
[1724117547543,0.00424771,60569.0,60568.0,0.443323]
[1724117548336,0.00424771,60569.0,60568.0,0.082523]
[1724117548731,0.00624771,60569.0,60568.0,0.082523]
[1724117549441,0.00424771,60569.0,60568.0,0.082523]
[1724117549637,0.00624771,60569.0,60568.0,0.082523]
[1724117550143,0.00524771,60569.0,60568.0,0.082523]
[1724117550646,0.00224771,60569.0,60568.0,0.082523]
[1724117550836,0.00624771,60569.0,60565.0,0.01059023]
[1724117551041,0.00424771,60569.0,60564.0,0.16375681]
[1724117551340,0.00624771,60569.0,60568.0,0.06535149]
[1724117551535,0.08876971,60569.0,60565.0,0.08122881]
[1724117551738,0.00624771,60569.0,60568.0,0.04903515]
[1724117551939,0.49656771,60569.0,60568.0,0.04903515]
[1724117552242,3.85376871,60569.0,60568.0,0.04903515]
[1724117552435,3.85376871,60569.0,60566.0,0.06536993]
[1724117552840,0.082523,60568.0,60566.0,0.06536993]
[1724117553136,0.3608,60567.0,60566.0,0.06536993]
[1724117553338,0.3608,60567.0,60565.0,0.06536993]
[1724117554739,0.3628,60567.0,60565.0,0.06536993]
[1724117555245,0.445324,60567.0,60566.0,0.06536993]
[1724117555539,0.084524,60567.0,60566.0,0.06536993]
[1724117555744,0.084524,60567.0,60563.0,0.08122881]
[1724117555948,0.084524,60567.0,60566.0,0.06537494]
[1724117557550,0.085524,60567.0,60566.0,0.06537494]
[1724117557737,0.082525,60566.0,60565.0,0.06537494]
[1724117557942,0.082527,60565.0,60564.0,0.06537494]
[1724117558446,0.004,60567.0,60564.0,0.06539433]
[1724117558645,0.082527,60565.0,60564.0,0.06539433]
[1724117559248,0.577847,60565.0,60564.0,0.06539433]
[1724117559446,0.082527,60565.0,60564.0,0.06539433]
[1724117560244,0.082527,60565.0,60559.0,0.0782]
[1724117560245,0.08253,60563.0,60559.0,0.0782]
[1724117560548,0.3608,60560.0,60559.0,0.0782]
[1724117560752,0.3608,60560.0,60559.0,0.10400234]
[1724117560949,0.3608,60560.0,60559.0,0.18523115]
[1724117561341,0.3608,60560.0,60559.0,0.18623115]
[1724117561652,0.082531,60562.0,60559.0,0.10600234]
[1724117561953,0.082531,60562.0,60560.0,0.02580234]
[1724117562250,0.082531,60562.0,60561.0,0.02580234]
[1724117562652,0.082531,60562.0,60561.0,0.02580205]
[1724117563650,0.082532,60561.0,60560.0,0.001]
[1724117563840,0.315064,60561.0,60560.0,0.001]
[1724117564147,0.082536,60558.0,60556.0,0.0490749]
[1724117564350,0.082536,60558.0,60551.0,0.0490749]
[1724117564351,0.671538,60557.0,60551.0,0.0490749]
[1724117564541,0.3608,60552.0,60550.0,0.0490749]
[1724117564737,0.082548,60549.0,60547.0,0.0490749]
[1724117564942,0.082548,60549.0,60546.0,0.0490749]
[1724117565449,0.082552,60547.0,60544.0,0.0490749]
[1724117565744,0.3608,60550.0,60543.0,0.0490749]
[1724117565745,0.3608,60545.0,60543.0,0.0490749]
[1724117566337,0.3608,60545.0,60541.0,0.1316339]
[1724117566849,4.1308,60545.0,60541.0,0.1316339]
[1724117567047,0.3608,60545.0,60541.0,0.1316339]
[1724117567348,0.3618,60545.0,60543.0,0.001]
[1724117567647,3.848,60544.0,60543.0,0.001]
[1724117567836,3.848,60544.0,60538.0,0.0490749]
[1724117568037,3.930555,60544.0,60541.0,0.001]
[1724117568347,0.082557,60543.0,60541.0,0.001]
[1724117568546,0.047357,60543.0,60541.0,0.002]
[1724117569454,0.047357,60543.0,60541.0,0.001]
[1724117570655,0.08256,60541.0,60533.0,0.0801]
[1724117570852,0.082561,60540.0,60533.0,0.0801]
[1724117571243,0.001,60543.0,60533.0,0.0801]
[1724117571244,0.082563,60539.0,60533.0,0.0801]
[1724117571446,0.001,60543.0,60524.0,0.22904]
[1724117571447,0.3608,60534.0,60526.0,0.0654149]
[1724117571643,0.3608,60534.0,60525.0,0.0852]
[1724117571941,0.3608,60534.0,60526.0,0.082579]
[1724117572144,0.443369,60534.0,60533.0,0.001]
[1724117572947,0.443369,60534.0,60533.0,0.002]
[1724117573655,4.214369,60534.0,60533.0,0.002]
[1724117573855,0.08257,60533.0,60525.0,0.001]